fUSD/lending_fUSD_20260701
["ID","MTS","AMOUNT","RATE_DAILY","PERIOD"]
[426816756,1782883843000,-783.095307,0.00015068,2]
[426816761,1782883843000,-783.095307,0.00015068,2]
[426816755,1782883843000,-783.095307,0.00015068,2]
[426816750,1782883843000,-171.0,0.00015068,2]
[426816759,1782883843000,-783.095307,0.00015068,2]
[426816760,1782883843000,-783.095307,0.00015068,2]
[426816752,1782883843000,-783.095307,0.00015068,2]
[426816757,1782883843000,-783.095307,0.00015068,2]
[426816764,1782883843000,-783.095307,0.00015068,2]
[426816767,1782883843000,-783.095307,0.00015068,2]
[426816765,1782883843000,-783.095307,0.00015068,2]
[426816766,1782883843000,-783.095307,0.00015068,2]
[426816763,1782883843000,-783.095307,0.00015068,2]
[426816735,1782883843000,-482.69,0.00014866,2]
[426816762,1782883843000,-783.095307,0.00015068,2]
[426816758,1782883843000,-783.095307,0.00015068,2]
[426816768,1782883843000,-783.095307,0.00015068,2]
[426816753,1782883843000,-783.095307,0.00015068,2]
[426816754,1782883843000,-783.095307,0.00015068,2]
[426816740,1782883843000,-482.69,0.00014866,2]
[426816747,1782883843000,-151.05,0.00015,2]
[426816748,1782883843000,-44493.67526809,0.00015,2]
[426816739,1782883843000,-482.64,0.00014866,2]
[426816745,1782883843000,-3359.13615762,0.0001496,2]
[426816746,1782883843000,-2634.52162246,0.00014967,2]
[426816731,1782883843000,-644.64,0.00014866,2]
[426816749,1782883843000,-203.72445175,0.0001506,2]
[426816741,1782883843000,-482.64,0.00014866,2]
[426816742,1782883843000,-242.42792841,0.00014893,2]
[426816743,1782883843000,-166.45362818,0.00014926,2]
[426816751,1782883843000,-783.095307,0.00015068,2]
[426816744,1782883843000,-230.52369354,0.00014958,2]
[426816822,1782883844000,-500.0,0.00016437,2]
[426816788,1782883844000,-439.94,0.00015688,2]
[426816789,1782883844000,-2567.12641977,0.00015694,2]
[426816791,1782883844000,-2013.64964176,0.00015695,2]
[426816793,1782883844000,-160.0,0.00015751,2]
[426816794,1782883844000,-2281.34821548,0.00015807,2]
[426816807,1782883844000,-475.44222522,0.000161,2]
[426816796,1782883844000,-150.82,0.00015974,2]
[426816802,1782883844000,-475.44222522,0.00016,2]
[426816799,1782883844000,-213.0,0.00016,2]
[426816805,1782883844000,-657.0,0.00016071,2]
[426816808,1782883844000,-171.0,0.00016116,2]
[426816782,1782883844000,-185.3,0.00015688,2]
[426816801,1782883844000,-150.0,0.00016,2]
[426816777,1782883844000,-9999.99,0.0001531,2]
[426816784,1782883844000,-482.69,0.00015688,2]
[426816776,1782883844000,-1207.92,0.0001531,2]
[426816780,1782883844000,-500.0,0.00015455,2]
[426816775,1782883844000,-8326.69,0.0001531,2]
[426816774,1782883844000,-150.99,0.0001531,2]
[426816781,1782883844000,-10000.0,0.00015622,2]
[426816785,1782883844000,-482.64,0.00015688,2]
[426816779,1782883844000,-4999.99,0.0001531,2]
[426816773,1782883844000,-2994.51,0.0001531,2]
[426816783,1782883844000,-482.69,0.00015688,2]
[426816771,1782883844000,-900.0,0.00015068,2]
[426816770,1782883844000,-783.095311,0.00015068,2]
[426816772,1782883844000,-166.66,0.0001511,2]
[426816769,1782883844000,-783.095307,0.00015068,2]
[426816821,1782883844000,-500.0,0.00016437,2]
[426816778,1782883844000,-3552.58,0.0001531,2]
[426816810,1782883844000,-9999.99,0.00016116,2]
[426816829,1782883844000,-171.0,0.00016438,2]
[426816811,1782883844000,-500.0,0.00016141,2]
[426816845,1782883844000,-413.81622583,0.00016438,2]
[426816843,1782883844000,-881.0,0.00016438,2]
[426816842,1782883844000,-813.56491614,0.00016438,2]
[426816841,1782883844000,-436.6150056,0.00016438,2]
[426816840,1782883844000,-1364.6880564,0.00016438,2]
[426816839,1782883844000,-153.51905,0.00016438,2]
[426816838,1782883844000,-210.425724,0.00016438,2]
[426816837,1782883844000,-151.0,0.00016438,2]
[426816836,1782883844000,-151.0,0.00016438,2]
[426816835,1782883844000,-151.0,0.00016438,2]
[426816830,1782883844000,-900.0,0.00016438,2]
[426816833,1782883844000,-161.220248,0.00016438,2]
[426816834,1782883844000,-151.0,0.00016438,2]
[426816831,1782883844000,-151.0,0.00016438,2]
[426816832,1782883844000,-151.0,0.00016438,2]
[426816828,1782883844000,-171.0,0.00016438,2]
[426816814,1782883844000,-475.44222522,0.000162,2]
[426816812,1782883844000,-3359.13615762,0.00016153,2]
[426816816,1782883844000,-187.318647,0.00016271,2]
[426816844,1782883844000,-106.73814586,0.00016438,2]
[426816813,1782883844000,-1500.0,0.00016185,2]
[426816818,1782883844000,-500.0,0.00016337,2]
[426816817,1782883844000,-152.0,0.00016283,3]
[426816819,1782883844000,-200.0,0.0001634,2]
[426816820,1782883844000,-163.1,0.00016384,2]
[426816824,1782883844000,-500.0,0.00016437,2]
[426816826,1782883844000,-500.0,0.00016437,2]
[426816827,1782883844000,-320.2,0.00016438,2]
[426816825,1782883844000,-500.0,0.00016437,2]
[426816815,1782883844000,-187.206222,0.00016271,2]
[426816823,1782883844000,-500.0,0.00016437,2]
[426816851,1782883846000,-1263.66495002,0.00016438,2]
[426816853,1782883880000,156.0,0.00028515,30]
[426816854,1782883882000,157.0,0.00029515,30]
[426816855,1782883900000,669.0,0.0003013,30]
[426816856,1782883914000,167.72,0.0002863,30]
[426816857,1782883921000,5336.29664203,0.00030137,30]
[426816858,1782883933000,294.0,0.00028515,30]
[426816859,1782883934000,294.0,0.00029515,30]
[426816861,1782883937000,500.0,0.00028493,60]
[426816860,1782883937000,554.07332027,0.00028493,60]
[426816862,1782883940000,377.456935,0.00030134,120]
[426816864,1782883963000,37931.42324546,0.00030137,30]
[426816866,1782883977000,188.733467,0.00030134,120]
[426816867,1782883989000,175.1,0.0002863,30]
[426816868,1782884011000,155.0,0.00028515,30]
[426816869,1782884012000,158.40707005,0.00029515,30]
[426816870,1782884030000,156.0,0.00028515,30]
[426816871,1782884032000,156.0,0.00029515,30]
[426816872,1782884067000,177.07,0.0002863,30]
[426816874,1782884145000,175.47,0.0002863,30]
[426816875,1782884149000,150.0,0.00012,2]
[426816876,1782884161000,173.44,0.0002863,30]
[426816877,1782884194000,174.65,0.0002863,30]
[426816878,1782884266000,175.46,0.0002863,30]
[426816879,1782884330000,175.47,0.0002863,30]
[426816880,1782884346000,174.45,0.0002863,30]
[426816881,1782884416000,175.46,0.0002863,30]
[426816882,1782884440000,174.46,0.0002863,30]
[426816883,1782884719000,159.0,0.00028515,30]
[426816884,1782884721000,159.0,0.00029515,30]
[426816885,1782884775000,151.9,0.000124,2]
[426816886,1782884799000,182.0,0.00028516,30]
[426816887,1782884801000,182.0,0.00029516,30]
[426816888,1782884835000,157.2226503,0.00028516,30]
[426816889,1782884912000,166.66,0.00012922,2]
[426816890,1782884921000,154.0,0.00028516,30]
[426816891,1782884922000,154.0,0.00029516,30]
[426816892,1782884941000,2000.0,0.00030136,30]
[426816894,1782884941000,2000.0,0.00028492,60]
[426816893,1782884941000,2000.0,0.00030133,120]
[426816897,1782885019000,265.0,0.00028516,30]
[426816898,1782885021000,265.0,0.00029516,30]
[426816904,1782885032000,-488.08341153,0.00013608,2]
[426816903,1782885032000,-808.11866524,0.00013608,2]
[426816906,1782885032000,-1913.24247472,0.00013608,2]
[426816905,1782885032000,-2488.01544851,0.00013608,2]
[426816909,1782885032000,-964.81390814,0.00013647,2]
[426816908,1782885032000,-1110.61079819,0.00013647,2]
[426816907,1782885032000,-729.38994227,0.00013647,2]
[426816910,1782885033000,-613.70672787,0.00013647,2]
[426816911,1782885033000,-3664.25862353,0.00013647,2]
[426816912,1782885033000,-189.64,0.00013647,2]
[426816913,1782885033000,-282.05641106,0.00013697,2]
[426816917,1782885033000,-355.23862956,0.00013697,2]
[426816919,1782885033000,-500.0,0.00013697,2]
[426816914,1782885033000,-500.0,0.00013697,2]
[426816918,1782885033000,-144.76137044,0.00013697,2]
[426816915,1782885033000,-500.0,0.00013697,2]
[426816916,1782885033000,-500.0,0.00013697,2]
[426816920,1782885033000,-500.0,0.00013697,2]
[426816922,1782885033000,-500.0,0.00013697,2]
[426816923,1782885033000,-500.0,0.00013697,2]
[426816926,1782885033000,-500.0,0.00013697,2]
[426816925,1782885033000,-263.98230859,0.00013697,2]
[426816921,1782885033000,-500.0,0.00013697,2]
[426816927,1782885033000,-75.23255463,0.00013697,2]
[426816929,1782885033000,-219.73230409,0.00013697,2]
[426816924,1782885033000,-236.01769141,0.00013697,2]
[426816928,1782885033000,-237.62241523,0.00013697,2]
[426816937,1782885038000,-500.0,0.00013697,2]
[426816948,1782885038000,-166.38,0.00013963,2]
[426816943,1782885038000,-200.0,0.00013699,2]
[426816947,1782885038000,-150.0,0.00013944,2]
[426816940,1782885038000,-500.0,0.00013697,2]
[426816936,1782885038000,-500.0,0.00013697,2]
[426816939,1782885038000,-500.0,0.00013697,2]
[426816938,1782885038000,-500.0,0.00013697,2]
[426816935,1782885038000,-500.0,0.00013697,2]
[426816934,1782885038000,-280.26769591,0.00013697,2]
[426816944,1782885038000,-11489.25,0.00013699,2]
[426816942,1782885038000,-500.0,0.00013697,2]
[426816946,1782885038000,-777.77518756,0.00013816,2]
[426816941,1782885038000,-500.0,0.00013697,2]
[426816950,1782885038000,-897.0,0.00013999,2]
[426816960,1782885038000,-1599.494872,0.0001425,2]
[426816961,1782885038000,-9613.52780236,0.0001425,2]
[426816956,1782885038000,-1666.95048349,0.00014189,2]
[426816955,1782885038000,-12584.22542716,0.00014189,2]
[426816945,1782885038000,-361.72,0.00013778,2]
[426816957,1782885038000,-377.466934,0.00014241,2]
[426816954,1782885038000,-271.56711785,0.00014188,2]
[426816949,1782885038000,-1086.12,0.00013963,2]
[426816951,1782885038000,-828.82,0.00014025,2]
[426816958,1782885038000,-518.30059061,0.00014249,2]
[426816959,1782885038000,-77208.65100934,0.0001425,2]
[426816952,1782885038000,-166.66,0.00014061,2]
[426816953,1782885038000,-150.0,0.00014117,2]
[426816974,1782885040000,-1210.49279188,0.0001425,2]
[426816975,1782885040000,-10002.00000039,0.0001425,2]
[426816977,1782885040000,-1597.12597159,0.0001425,2]
[426816976,1782885040000,-390.204,0.0001425,2]
[426816980,1782885041000,-1848.49778109,0.0001425,2]
[426816981,1782885041000,-337.566,0.0001425,2]
[426816992,1782885043000,-613.0,0.0001425,2]
[426816994,1782885046000,-297939.47064753,0.0001425,2]
[426816995,1782885046000,-150.82,0.00014289,2]
[426816997,1782885046000,-2458.1467874,0.00014347,2]
[426816993,1782885046000,-369.96588249,0.0001425,2]
[426816998,1782885046000,-14626.88,0.00014497,2]
[426817001,1782885046000,-591.3,0.00014665,2]
[426816996,1782885046000,-1086.12,0.00014312,2]
[426817000,1782885046000,-1086.12,0.00014661,2]
[426816999,1782885046000,-913.0,0.000146,2]
[426817040,1782885047000,-500.0,0.00016438,2]
[426817022,1782885047000,-173.67,0.00015716,2]
[426817023,1782885047000,-1666.95048342,0.00015976,2]
[426817026,1782885047000,-500.0,0.00016099,2]
[426817024,1782885047000,-500.0,0.00016067,2]
[426817033,1782885047000,-200.0,0.00016307,2]
[426817029,1782885047000,-150.99,0.00016116,2]
[426817028,1782885047000,-9999.99,0.00016116,2]
[426817038,1782885047000,-500.0,0.00016438,2]
[426817036,1782885047000,-293.5,0.00016438,2]
[426817032,1782885047000,-1908.32596,0.0001627,2]
[426817034,1782885047000,-796.98382525,0.00016368,2]
[426817031,1782885047000,-1908.32596,0.0001627,2]
[426817044,1782885047000,-1908.32596,0.00016438,2]
[426817039,1782885047000,-500.0,0.00016438,2]
[426817037,1782885047000,-502.28695598,0.00016438,2]
[426817035,1782885047000,-1500.0,0.00016392,2]
[426817041,1782885047000,-500.0,0.00016438,2]
[426817030,1782885047000,-1908.32595,0.0001627,2]
[426817025,1782885047000,-591.3,0.00016071,2]
[426817063,1782885047000,-982.94719681,0.00016438,2]
[426817019,1782885047000,-1086.12,0.0001536,2]
[426817043,1782885047000,-1908.32596,0.00016438,2]
[426817003,1782885047000,-152.77,0.00014746,2]
[426817002,1782885047000,-904.0,0.00014717,2]
[426817004,1782885047000,-3566.0,0.00014999,2]
[426817006,1782885047000,-1277.088,0.00014999,2]
[426817005,1782885047000,-1362.0,0.00014999,2]
[426817007,1782885047000,-250.0,0.00014999,2]
[426817010,1782885047000,-151.0,0.00014999,2]
[426817011,1782885047000,-250.0,0.00014999,2]
[426817027,1782885047000,-1639.6,0.00016116,2]
[426817015,1782885047000,-200.0,0.00015011,2]
[426817009,1782885047000,-150.174,0.00014999,2]
[426817012,1782885047000,-216.517,0.00014999,2]
[426817013,1782885047000,-3651.0,0.00014999,2]
[426817008,1782885047000,-935.0,0.00014999,2]
[426817016,1782885047000,-194.7,0.00015083,2]
[426817018,1782885047000,-497.03,0.00015345,2]
[426817020,1782885047000,-12584.22542711,0.00015468,2]
[426817017,1782885047000,-808.119,0.00015342,2]
[426817021,1782885047000,-3542.528324,0.00015669,2]
[426817014,1782885047000,-1086.12,0.0001501,2]
[426817045,1782885047000,-1908.32596,0.00016438,2]
[426817069,1782885047000,-982.94719681,0.00016438,2]
[426817052,1782885047000,-982.94719681,0.00016438,2]
[426817068,1782885047000,-982.94719681,0.00016438,2]
[426817075,1782885047000,-982.94719681,0.00016438,2]
[426817073,1782885047000,-982.94719681,0.00016438,2]
[426817070,1782885047000,-982.94719681,0.00016438,2]
[426817074,1782885047000,-982.94719681,0.00016438,2]
[426817078,1782885047000,-982.94719681,0.00016438,2]
[426817077,1782885047000,-982.94719681,0.00016438,2]
[426817051,1782885047000,-982.94719681,0.00016438,2]
[426817089,1782885047000,-982.94719681,0.00016438,2]
[426817083,1782885047000,-982.94719681,0.00016438,2]
[426817087,1782885047000,-982.94719681,0.00016438,2]
[426817079,1782885047000,-982.94719681,0.00016438,2]
[426817081,1782885047000,-982.94719681,0.00016438,2]
[426817084,1782885047000,-982.94719681,0.00016438,2]
[426817080,1782885047000,-982.94719681,0.00016438,2]
[426817085,1782885047000,-982.94719681,0.00016438,2]
[426817086,1782885047000,-982.94719681,0.00016438,2]
[426817082,1782885047000,-982.94719681,0.00016438,2]
[426817090,1782885047000,-207.24041374,0.00016438,2]
[426817066,1782885047000,-982.94719681,0.00016438,2]
[426817071,1782885047000,-982.94719681,0.00016438,2]
[426817088,1782885047000,-982.94719681,0.00016438,2]
[426817042,1782885047000,-500.0,0.00016438,2]
[426817050,1782885047000,-982.94719681,0.00016438,2]
[426817047,1782885047000,-982.94719681,0.00016438,2]
[426817046,1782885047000,-982.94719681,0.00016438,2]
[426817049,1782885047000,-982.94719681,0.00016438,2]
[426817064,1782885047000,-982.94719681,0.00016438,2]
[426817054,1782885047000,-982.94719681,0.00016438,2]
[426817053,1782885047000,-982.94719681,0.00016438,2]
[426817057,1782885047000,-982.94719681,0.00016438,2]
[426817048,1782885047000,-982.94719681,0.00016438,2]
[426817055,1782885047000,-982.94719681,0.00016438,2]
[426817059,1782885047000,-982.94719681,0.00016438,2]
[426817058,1782885047000,-982.94719681,0.00016438,2]
[426817062,1782885047000,-982.94719681,0.00016438,2]
[426817060,1782885047000,-982.94719681,0.00016438,2]
[426817061,1782885047000,-982.94719681,0.00016438,2]
[426817067,1782885047000,-982.94719681,0.00016438,2]
[426817065,1782885047000,-982.94719681,0.00016438,2]
[426817076,1782885047000,-982.94719681,0.00016438,2]
[426817056,1782885047000,-982.94719681,0.00016438,2]
[426817072,1782885047000,-982.94719681,0.00016438,2]
[426817091,1782885114000,157.0,0.00028516,30]
[426817092,1782885141000,613.0,0.0003013,30]
[426817093,1782885223000,1654.83699071,0.000114,2]
[426817094,1782885279000,4272.45848747,8e-05,2]
[426817096,1782885456000,10613.92044112,9.04e-05,2]
[426817097,1782885687000,1624.7228088,0.00030136,30]
[426817102,1782885801000,162.0,0.00028514,30]
[426817103,1782885891000,163.0,0.00028514,30]
[426817104,1782885892000,163.0,0.00029514,30]
[426817105,1782886010000,160.0,0.00028514,30]
[426817107,1782886108000,238.0,0.00028514,30]
[426817108,1782886109000,238.0,0.00029514,30]
[426817110,1782886140000,2000.0,0.00030132,120]
[426817109,1782886140000,2000.0,0.00030135,30]
[426817111,1782886141000,2000.0,0.00028491,60]
[426817127,1782886233000,-153.0,0.00014049,2]
[426817122,1782886233000,-152.0,0.00014049,2]
[426817126,1782886233000,-151.0,0.00014049,2]
[426817125,1782886233000,-153.0,0.00014049,2]
[426817123,1782886233000,-153.0,0.00014049,2]
[426817124,1782886233000,-150.0,0.00014049,2]
[426817129,1782886233000,-153.0,0.00014049,2]
[426817119,1782886233000,-151.0,0.00014049,2]
[426817118,1782886233000,-150.0,0.00014049,2]
[426817117,1782886233000,-151.0,0.00014049,2]
[426817116,1782886233000,-151.0,0.00014049,2]
[426817115,1782886233000,-150.0,0.00014049,2]
[426817114,1782886233000,-600.0,0.00014049,2]
[426817121,1782886233000,-150.0,0.00014049,2]
[426817137,1782886233000,-150.0,0.00014149,2]
[426817120,1782886233000,-150.0,0.00014049,2]
[426817138,1782886233000,-150.0,0.00014149,2]
[426817128,1782886233000,-151.0,0.00014049,2]
[426817146,1782886233000,-151.0,0.00014149,2]
[426817142,1782886233000,-152.0,0.00014149,2]
[426817140,1782886233000,-151.0,0.00014149,2]
[426817145,1782886233000,-152.0,0.00014149,2]
[426817143,1782886233000,-151.0,0.00014149,2]
[426817144,1782886233000,-151.0,0.00014149,2]
[426817141,1782886233000,-150.0,0.00014149,2]
[426817133,1782886233000,-153.0,0.00014051,2]
[426817135,1782886233000,-150.0,0.00014088,2]
[426817136,1782886233000,-150.0,0.00014149,2]
[426817134,1782886233000,-153.0,0.00014059,2]
[426817132,1782886233000,-152.0,0.0001405,2]
[426817131,1782886233000,-244.67172893,0.00014049,2]
[426817130,1782886233000,-151.0,0.00014049,2]
[426817139,1782886233000,-152.0,0.00014149,2]
[426817173,1782886234000,-200.0,0.00014869,2]
[426817165,1782886234000,-151.0,0.00014249,2]
[426817166,1782886234000,-152.0,0.00014249,2]
[426817164,1782886234000,-151.0,0.00014249,2]
[426817167,1782886234000,-153.0,0.00014249,2]
[426817168,1782886234000,-152.0,0.00014249,2]
[426817169,1782886234000,-151.0,0.00014249,2]
[426817170,1782886234000,-152.0,0.00014249,2]
[426817171,1782886234000,-166.66,0.00014689,2]
[426817174,1782886234000,-184.63,0.00014896,2]
[426817180,1782886234000,-423.4821003,0.00014999,2]
[426817162,1782886234000,-150.0,0.00014249,2]
[426817172,1782886234000,-532.17,0.0001481,2]
[426817163,1782886234000,-151.0,0.00014249,2]
[426817160,1782886234000,-152.0,0.00014249,2]
[426817157,1782886234000,-400.37759164,0.00014248,2]
[426817158,1782886234000,-500.0,0.00014249,2]
[426817156,1782886234000,-500.0,0.00014248,2]
[426817152,1782886234000,-150.0,0.00014158,2]
[426817161,1782886234000,-151.0,0.00014249,2]
[426817154,1782886234000,-500.0,0.00014248,2]
[426817155,1782886234000,-500.0,0.00014248,2]
[426817183,1782886234000,-190.09698249,0.00014999,2]
[426817153,1782886234000,-151.0,0.00014187,2]
[426817151,1782886234000,-151.0,0.00014151,2]
[426817148,1782886234000,-152.0,0.00014149,2]
[426817150,1782886234000,-153.0,0.0001415,2]
[426817149,1782886234000,-151.0,0.00014149,2]
[426817147,1782886234000,-151.0,0.00014149,2]
[426817159,1782886234000,-500.0,0.00014249,2]
[426817176,1782886234000,-3566.0,0.00014999,2]
[426817179,1782886234000,-2618.69547527,0.00014999,2]
[426817178,1782886234000,-1231.0,0.00014999,2]
[426817208,1782886234000,-333.22736026,0.00015818,2]
[426817209,1782886234000,-500.0,0.0001592,2]
[426817206,1782886234000,-966.8170122,0.00015809,2]
[426817210,1782886234000,-835.38752232,0.00016116,2]
[426817205,1782886234000,-500.0,0.00015762,2]
[426817207,1782886234000,-500.0,0.00015818,2]
[426817204,1782886234000,-895.57805392,0.00015656,2]
[426817203,1782886234000,-3642.22661369,0.00015616,2]
[426817201,1782886234000,-2051.34856343,0.00015616,2]
[426817202,1782886234000,-995.56895824,0.00015616,2]
[426817197,1782886234000,-145.00733805,0.00015602,2]
[426817198,1782886234000,-604.63673185,0.00015616,2]
[426817200,1782886234000,-1515.1321412,0.00015616,2]
[426817175,1782886234000,-150.0,0.00014999,2]
[426817196,1782886234000,-44.63266195,0.00015602,2]
[426817199,1782886234000,-804.61479395,0.00015616,2]
[426817193,1782886234000,-108.5768133,0.00015454,2]
[426817182,1782886234000,-3651.0,0.00014999,2]
[426817177,1782886234000,-1362.0,0.00014999,2]
[426817181,1782886234000,-3046.82242443,0.00014999,2]
[426817195,1782886234000,-150.0,0.000156,2]
[426817185,1782886234000,-1021.52810958,0.00015,2]
[426817186,1782886234000,-5536.37727131,0.00015,2]
[426817184,1782886234000,-5522.3338689,0.00015,2]
[426817187,1782886234000,-1898.12028,0.00015,2]
[426817191,1782886234000,-600.0,0.00015454,2]
[426817192,1782886234000,-141.4231867,0.00015454,2]
[426817190,1782886234000,-339.36062323,0.00015156,2]
[426817188,1782886234000,-1420.57932293,0.00015,2]
[426817194,1782886234000,-150.82,0.0001552,2]
[426817189,1782886234000,-5845.13989648,0.00015,2]
[426817212,1782886235000,-4261.1042238,0.00016116,2]
[426817211,1782886235000,-6198.44125703,0.00016116,2]
[426817214,1782886238000,-9613.52780236,0.00016116,2]
[426817213,1782886238000,-292.63552503,0.00016116,2]
[426817239,1782886240000,-2173.80690791,0.00016116,2]
[426817240,1782886240000,-300.0,0.00016116,2]
[426817243,1782886240000,-150.0,0.00016215,2]
[426817244,1782886240000,-96.09171841,0.00016215,2]
[426817242,1782886240000,-150.0,0.00016215,2]
[426817241,1782886240000,-985.18676155,0.00016116,2]
[426817255,1782886243000,-53.90828159,0.00016215,2]
[426817254,1782886243000,-152.0,0.00015656,2]
[426817256,1782886243000,-150.0,0.00016215,2]
[426817257,1782886243000,-280.63971125,0.00016215,2]
[426817260,1782886243000,-532.17,0.0001639,2]
[426817259,1782886243000,-166.66,0.00016235,2]
[426817262,1782886243000,-166.38,0.00016422,2]
[426817261,1782886243000,-500.0,0.00016398,2]
[426817263,1782886243000,-269.0,0.00016438,2]
[426817265,1782886243000,-566.12526509,0.00016438,2]
[426817258,1782886243000,-828.81,0.00016229,2]
[426817266,1782886243000,-566.12526509,0.00016438,2]
[426817269,1782886243000,-566.12526509,0.00016438,2]
[426817274,1782886243000,-566.12526509,0.00016438,2]
[426817271,1782886243000,-566.12526509,0.00016438,2]
[426817272,1782886243000,-566.12526509,0.00016438,2]
[426817273,1782886243000,-566.12526509,0.00016438,2]
[426817275,1782886243000,-566.12526509,0.00016438,2]
[426817270,1782886243000,-566.12526509,0.00016438,2]
[426817264,1782886243000,-523.64,0.00016438,2]
[426817267,1782886243000,-566.12526509,0.00016438,2]
[426817268,1782886243000,-566.12526509,0.00016438,2]
[426817316,1782886244000,-889.11766215,0.00016438,2]
[426817303,1782886244000,-566.12526509,0.00016438,2]
[426817310,1782886244000,-889.11766215,0.00016438,2]
[426817313,1782886244000,-889.11766215,0.00016438,2]
[426817314,1782886244000,-889.11766215,0.00016438,2]
[426817312,1782886244000,-889.11766215,0.00016438,2]
[426817311,1782886244000,-889.11766215,0.00016438,2]
[426817302,1782886244000,-566.12526509,0.00016438,2]
[426817320,1782886244000,-889.11766215,0.00016438,2]
[426817318,1782886244000,-889.11766215,0.00016438,2]
[426817321,1782886244000,-889.11766215,0.00016438,2]
[426817329,1782886244000,-889.11766215,0.00016438,2]
[426817322,1782886244000,-889.11766215,0.00016438,2]
[426817317,1782886244000,-889.11766215,0.00016438,2]
[426817315,1782886244000,-889.11766215,0.00016438,2]
[426817324,1782886244000,-889.11766215,0.00016438,2]
[426817323,1782886244000,-889.11766215,0.00016438,2]
[426817326,1782886244000,-889.11766215,0.00016438,2]
[426817325,1782886244000,-889.11766215,0.00016438,2]
[426817331,1782886244000,-889.11766215,0.00016438,2]
[426817327,1782886244000,-889.11766215,0.00016438,2]
[426817330,1782886244000,-889.11766215,0.00016438,2]
[426817304,1782886244000,-566.12526509,0.00016438,2]
[426817328,1782886244000,-889.11766215,0.00016438,2]
[426817334,1782886244000,-889.11766215,0.00016438,2]
[426817319,1782886244000,-889.11766215,0.00016438,2]
[426817301,1782886244000,-566.12526509,0.00016438,2]
[426817296,1782886244000,-566.12526509,0.00016438,2]
[426817309,1782886244000,-889.11766215,0.00016438,2]
[426817333,1782886244000,-889.11766215,0.00016438,2]
[426817276,1782886244000,-566.12526509,0.00016438,2]
[426817285,1782886244000,-566.12526509,0.00016438,2]
[426817278,1782886244000,-566.12526509,0.00016438,2]
[426817277,1782886244000,-566.12526509,0.00016438,2]
[426817279,1782886244000,-566.12526509,0.00016438,2]
[426817282,1782886244000,-566.12526509,0.00016438,2]
[426817284,1782886244000,-566.12526509,0.00016438,2]
[426817283,1782886244000,-566.12526509,0.00016438,2]
[426817281,1782886244000,-566.12526509,0.00016438,2]
[426817280,1782886244000,-566.12526509,0.00016438,2]
[426817286,1782886244000,-566.12526509,0.00016438,2]
[426817291,1782886244000,-566.12526509,0.00016438,2]
[426817288,1782886244000,-566.12526509,0.00016438,2]
[426817287,1782886244000,-566.12526509,0.00016438,2]
[426817289,1782886244000,-566.12526509,0.00016438,2]
[426817290,1782886244000,-566.12526509,0.00016438,2]
[426817293,1782886244000,-566.12526509,0.00016438,2]
[426817297,1782886244000,-566.12526509,0.00016438,2]
[426817292,1782886244000,-566.12526509,0.00016438,2]
[426817298,1782886244000,-566.12526509,0.00016438,2]
[426817295,1782886244000,-566.12526509,0.00016438,2]
[426817294,1782886244000,-566.12526509,0.00016438,2]
[426817300,1782886244000,-566.12526509,0.00016438,2]
[426817307,1782886244000,-566.12526509,0.00016438,2]
[426817306,1782886244000,-566.12526509,0.00016438,2]
[426817299,1782886244000,-566.12526509,0.00016438,2]
[426817308,1782886244000,-889.11766215,0.00016438,2]